fUSD/lending_fUSD_20250823
["ID","MTS","AMOUNT","RATE_DAILY","PERIOD"]
[380933960,1755907849614,-500.0,0.00013698,2]
[380933961,1755907849623,-514.03,0.00013698,2]
[380933962,1755907849633,-150.0,0.00013698,2]
[380933963,1755907849642,-400.0,0.00013698,2]
[380933964,1755907849651,-616.71,0.00013698,2]
[380933965,1755907849661,-743.74,0.00013698,2]
[380933966,1755907849670,-1923.54,0.00013698,2]
[380933967,1755907849680,-426.85,0.00013698,2]
[380933968,1755907849690,-400.0,0.00013698,2]
[380933969,1755907849699,-638.19,0.00013698,2]
[380933970,1755907849709,-1268.21,0.00013698,2]
[380933971,1755907849719,-400.0,0.00013698,2]
[380933972,1755907849728,-400.0,0.00013698,2]
[380933973,1755907849738,-538.01,0.00013698,2]
[380933974,1755907849748,-400.0,0.00013698,2]
[380933975,1755907849758,-400.0,0.00013698,2]
[380933976,1755907849768,-400.0,0.00013698,2]
[380933977,1755907849778,-400.0,0.00013698,2]
[380933978,1755907849924,-648.28,0.00013698,2]
[380933979,1755907849934,-665.04,0.00013698,2]
[380933980,1755907849944,-1121.06,0.00013698,2]
[380933981,1755907849954,-400.0,0.00013698,2]
[380933982,1755907849964,-400.0,0.00013698,2]
[380933983,1755907849973,-400.0,0.00013698,2]
[380933984,1755907849983,-400.0,0.00013698,2]
[380933985,1755907849993,-400.0,0.00013698,2]
[380933986,1755907850003,-400.0,0.00013698,2]
[380933988,1755907850014,-400.0,0.00013698,2]
[380933989,1755907850024,-620.66,0.00013698,2]
[380933990,1755907850033,-400.0,0.00013698,2]
[380933991,1755907850044,-580.59,0.00013698,2]
[380933992,1755907850054,-400.0,0.00013698,2]
[380933993,1755907850063,-780.05,0.00013698,2]
[380933994,1755907850073,-590.53,0.00013698,2]
[380933995,1755907850083,-400.0,0.00013698,2]
[380933996,1755907850092,-400.0,0.00013698,2]
[380933997,1755907850102,-1376.17,0.00013698,2]
[380933998,1755907850113,-921.79,0.00013698,2]
[380933999,1755907850122,-400.0,0.00013698,2]
[380934000,1755907850132,-500.0,0.00013698,2]
[380934001,1755907850142,-548.8,0.00013698,2]
[380934002,1755907850152,-875.59,0.00013698,2]
[380934003,1755907850163,-400.0,0.00013698,2]
[380934004,1755907850172,-400.0,0.00013698,2]
[380934005,1755907850182,-567.73,0.00013698,2]
[380934006,1755907850192,-500.0,0.00013698,2]
[380934007,1755907850202,-400.0,0.00013698,2]
[380934008,1755907850212,-792.16,0.00013698,2]
[380934009,1755907850222,-400.0,0.00013698,2]
[380934010,1755907850231,-150.0,0.00013698,2]
[380934011,1755907850241,-400.0,0.00013698,2]
[380934012,1755907850250,-400.0,0.00013698,2]
[380934013,1755907850260,-708.0,0.00013698,2]
[380934014,1755907850270,-400.0,0.00013698,2]
[380934015,1755907850280,-400.0,0.00013698,2]
[380934016,1755907850290,-400.0,0.00013698,2]
[380934017,1755907850300,-615.38,0.00013698,2]
[380934018,1755907850309,-400.0,0.00013698,2]
[380934019,1755907850319,-597.94,0.00013698,2]
[380934020,1755907850329,-400.0,0.00013698,2]
[380934021,1755907850339,-400.0,0.00013698,2]
[380934022,1755907850348,-849.34,0.00013698,2]
[380934023,1755907850357,-400.0,0.00013698,2]
[380934024,1755907850368,-946.45,0.00013698,2]
[380934025,1755907850377,-694.53,0.00013698,2]
[380934026,1755907850387,-500.0,0.00013698,2]
[380934027,1755907850396,-1113.49,0.00013698,2]
[380934028,1755907850406,-2921.91,0.00013698,2]
[380934029,1755907850418,-400.0,0.00013698,2]
[380934030,1755907850428,-400.0,0.00013698,2]
[380934031,1755907850438,-637.64,0.00013698,2]
[380934032,1755907850448,-411.96,0.00013698,2]
[380934033,1755907850459,-400.0,0.00013698,2]
[380934034,1755907850469,-534.25,0.00013698,2]
[380934035,1755907850479,-400.0,0.00013698,2]
[380934036,1755907850488,-635.53,0.00013698,2]
[380934037,1755907850498,-734.07,0.00013698,2]
[380934038,1755907850509,-519.36,0.00013698,2]
[380934039,1755907850518,-571.05,0.00013698,2]
[380934040,1755907850528,-400.0,0.00013698,2]
[380934041,1755907850537,-400.0,0.00013698,2]
[380934042,1755907850547,-400.0,0.00013698,2]
[380934043,1755907850557,-514.06,0.00013698,2]
[380934044,1755907850566,-400.0,0.00013698,2]
[380934045,1755907850576,-906.03,0.00013698,2]
[380934046,1755907850585,-750.95,0.00013698,2]
[380934047,1755907850595,-647.63,0.00013698,2]
[380934048,1755907850604,-421.94,0.00013698,2]
[380934049,1755907850614,-728.88,0.00013698,2]
[380934050,1755907850623,-400.0,0.00013698,2]
[380934051,1755907850632,-916.77,0.00013698,2]
[380934052,1755907850643,-400.0,0.00013698,2]
[380934053,1755907850654,-464.14,0.00013698,2]
[380934054,1755907850664,-632.37,0.00013698,2]
[380934055,1755907850677,-400.0,0.00013698,2]
[380934056,1755907850686,-578.04,0.00013698,2]
[380934057,1755907850696,-642.86,0.00013698,2]
[380934058,1755907850705,-1030.34,0.00013698,2]
[380934059,1755907850715,-400.0,0.00013698,2]
[380934060,1755907850725,-400.0,0.00013698,2]
[380934061,1755907850735,-551.22,0.00013698,2]
[380934062,1755907850744,-400.0,0.00013698,2]
[380934063,1755907850754,-400.0,0.00013698,2]
[380934064,1755907850764,-400.0,0.00013698,2]
[380934065,1755907850773,-400.0,0.00013698,2]
[380934066,1755907850783,-400.0,0.00013698,2]
[380934067,1755907850793,-612.66,0.00013698,2]
[380934068,1755907850802,-400.0,0.00013698,2]
[380934069,1755907850811,-713.48,0.00013698,2]
[380934070,1755907850820,-401.2616877,0.00013698,2]
[380934071,1755907850830,-400.0,0.00013698,2]
[380934072,1755907850842,-400.0,0.00013698,2]
[380934073,1755907850854,-681.06,0.00013698,2]
[380934074,1755907850863,-491.54,0.00013698,2]
[380934075,1755907850873,-1852.57,0.00013698,2]
[380934076,1755907850882,-400.0,0.00013698,2]
[380934077,1755907850893,-213.80671901,0.00013698,2]
[380934078,1755907850902,-1198.24,0.00013698,2]
[380934079,1755907850914,-400.0,0.00013698,2]
[380934080,1755907850924,-571.21,0.00013698,2]
[380934081,1755907850934,-507.5,0.00013698,2]
[380934082,1755907850943,-410.02,0.00013698,2]
[380934083,1755907850952,-400.0,0.00013698,2]
[380934084,1755907850962,-816.88,0.00013698,2]
[380934085,1755907850971,-493.93,0.00013698,2]
[380934086,1755907850981,-919.8,0.00013698,2]
[380934087,1755907850991,-400.0,0.00013698,2]
[380934088,1755907851000,-720.0,0.00013698,2]
[380934089,1755907851010,-561.11,0.00013698,2]
[380934090,1755907851019,-609.57,0.00013698,2]
[380934091,1755907851029,-358.36066732,0.00013698,2]
[380934092,1755907851038,-444.54,0.00013698,2]
[380934093,1755907851048,-400.0,0.00013698,2]
[380934094,1755907851058,-584.4,0.00013698,2]
[380934095,1755907851067,-400.0,0.00013698,2]
[380934096,1755907851077,-561.72,0.00013698,2]
[380934097,1755907851086,-447.91,0.00013698,2]
[380934098,1755907851096,-2554.99,0.00013698,2]
[380934099,1755907851106,-400.0,0.00013698,2]
[380934100,1755907851115,-400.0,0.00013698,2]
[380934101,1755907851125,-1278.67,0.00013698,2]
[380934102,1755907851134,-400.0,0.00013698,2]
[380934103,1755907851144,-400.0,0.00013698,2]
[380934104,1755907851153,-490.9,0.00013698,2]
[380934105,1755907851165,-400.0,0.00013698,2]
[380934106,1755907851174,-945.63,0.00013698,2]
[380934107,1755907851184,-400.0,0.00013698,2]
[380934108,1755907851194,-151.0,0.00013698,2]
[380934109,1755907851204,-151.0,0.00013698,2]
[380934110,1755907851213,-475.96,0.00013698,2]
[380934111,1755907851224,-400.0,0.00013698,2]
[380934112,1755907851235,-451.19,0.00013698,2]
[380934113,1755907851244,-593.46,0.00013698,2]
[380934114,1755907851254,-1135.83,0.00013698,2]
[380934115,1755907851264,-400.0,0.00013698,2]
[380934116,1755907851273,-406.75,0.00013698,2]
[380934117,1755907851283,-400.0,0.00013698,2]
[380934118,1755907851293,-227.547595,0.00013698,2]
[380934119,1755907851303,-151.221825,0.00013698,2]
[380934120,1755907851312,-500.0,0.00013698,2]
[380934121,1755907851323,-500.0,0.00013698,2]
[380934122,1755907851332,-400.0,0.00013698,2]
[380934123,1755907851342,-500.0,0.00013698,2]
[380934124,1755907851351,-400.0,0.00013698,2]
[380934125,1755907851361,-151.0,0.00013698,2]
[380934126,1755907851371,-400.0,0.00013698,2]
[380934127,1755907851381,-227.547595,0.00013698,2]
[380934128,1755907851391,-267.304114,0.00013698,2]
[380934129,1755907851401,-227.547595,0.00013698,2]
[380934130,1755907851411,-1191.42,0.00013698,2]
[380934131,1755907851421,-267.304114,0.00013698,2]
[380934132,1755907851431,-400.0,0.00013698,2]
[380934133,1755907851441,-151.0,0.00013698,2]
[380934134,1755907851451,-400.0,0.00013698,2]
[380934135,1755907851460,-400.0,0.00013698,2]
[380934136,1755907851470,-227.547595,0.00013698,2]
[380934137,1755907851480,-196.827048,0.00013698,2]
[380934138,1755907851490,-267.304114,0.00013698,2]
[380934139,1755907851499,-627.43,0.00013698,2]
[380934140,1755907851509,-400.0,0.00013698,2]
[380934141,1755907851519,-886.76,0.00013698,2]
[380934142,1755907851529,-328.978955,0.00013698,2]
[380934143,1755907851540,-507.21,0.00013698,2]
[380934144,1755907851552,-574.18,0.00013698,2]
[380934145,1755907851562,-5850.17,0.00013698,2]
[380934146,1755907851571,-267.304114,0.00013698,2]
[380934147,1755907851582,-400.0,0.00013698,2]
[380934148,1755907851593,-895.5,0.00013698,2]
[380934149,1755907851602,-328.978955,0.00013698,2]
[380934150,1755907851612,-434.43,0.00013698,2]
[380934151,1755907851621,-536.37,0.00013698,2]
[380934152,1755907851631,-677.89,0.00013698,2]
[380934153,1755907851641,-546.86590495,0.00013698,2]
[380934154,1755907851651,-328.978955,0.00013698,2]
[380934155,1755907851661,-400.0,0.00013698,2]
[380934156,1755907851672,-328.978955,0.00013698,2]
[380934157,1755907851681,-839.48,0.00013698,2]
[380934158,1755907851693,-400.0,0.00013698,2]
[380934159,1755907851703,-400.0,0.00013698,2]
[380934160,1755907851713,-151.0,0.00013698,2]
[380934161,1755907851723,-499.13,0.00013698,2]
[380934162,1755907851733,-452.23,0.00013698,2]
[380934163,1755907851743,-400.0,0.00013698,2]
[380934164,1755907851753,-400.0,0.00013698,2]
[380934165,1755907851763,-400.0,0.00013698,2]
[380934166,1755907851774,-400.0,0.00013698,2]
[380934167,1755907851784,-400.0,0.00013698,2]
[380934168,1755907851794,-483.53,0.00013698,2]
[380934169,1755907851805,-400.0,0.00013698,2]
[380934170,1755907851815,-400.0,0.00013698,2]
[380934171,1755907851825,-1000.24,0.00013698,2]
[380934172,1755907851835,-609.87,0.00013698,2]
[380934173,1755907851845,-400.0,0.00013698,2]
[380934174,1755907851858,-933.3,0.00013698,2]
[380934175,1755907851867,-400.0,0.00013698,2]
[380934176,1755907851878,-1055.44,0.00013698,2]
[380934177,1755907851891,-400.0,0.00013698,2]
[380934178,1755907851901,-1026.97,0.00013698,2]
[380934179,1755907851911,-1777.2,0.00013698,2]
[380934180,1755907851921,-996.22,0.00013698,2]
[380934181,1755907851931,-400.0,0.00013698,2]
[380934182,1755907851941,-641.64,0.00013698,2]
[380934183,1755907851951,-509.69,0.00013698,2]
[380934184,1755907851961,-732.2,0.00013698,2]
[380934185,1755907851971,-400.0,0.00013698,2]
[380934186,1755907851980,-151.0,0.00013698,2]
[380934187,1755907851990,-400.0,0.00013698,2]
[380934188,1755907851999,-400.0,0.00013698,2]
[380934189,1755907852008,-400.0,0.00013698,2]
[380934190,1755907852018,-400.0,0.00013698,2]
[380934191,1755907852027,-400.0,0.00013698,2]
[380934192,1755907852036,-753.42,0.00013698,2]
[380934193,1755907852046,-400.0,0.00013698,2]
[380934194,1755907852055,-497.95,0.00013698,2]
[380934195,1755907852065,-151.0,0.00013698,2]
[380934196,1755907852074,-400.0,0.00013698,2]
[380934197,1755907852083,-706.45,0.00013698,2]
[380934198,1755907852093,-400.0,0.00013698,2]
[380934199,1755907852102,-400.0,0.00013698,2]
[380934200,1755907852111,-400.0,0.00013698,2]
[380934201,1755907852121,-629.44,0.00013698,2]
[380934202,1755907852131,-400.0,0.00013698,2]
[380934203,1755907852140,-684.21,0.00013698,2]
[380934204,1755907852149,-400.0,0.00013698,2]
[380934205,1755907852159,-1459.7,0.00013698,2]
[380934206,1755907852168,-414.61,0.00013698,2]
[380934207,1755907852178,-400.0,0.00013698,2]
[380934208,1755907852187,-657.03,0.00013698,2]
[380934209,1755907852196,-400.0,0.00013698,2]
[380934210,1755907852206,-512.8,0.00013698,2]
[380934211,1755907852215,-400.0,0.00013698,2]
[380934212,1755907852225,-1273.05,0.00013698,2]
[380934213,1755907852235,-400.0,0.00013698,2]
[380934214,1755907852245,-442.73774553,0.00013698,2]
[380934215,1755907852255,-151.0,0.00013698,2]
[380934216,1755907852264,-151.0,0.00013698,2]
[380934217,1755907852274,-782.19,0.00013698,2]
[380934218,1755907852283,-866.82,0.00013698,2]
[380934219,1755907852292,-633.04,0.00013698,2]
[380934220,1755907852302,-151.0,0.00013698,2]
[380934221,1755907852312,-560.16,0.00013698,2]
[380934222,1755907852322,-400.0,0.00013698,2]
[380934223,1755907852333,-400.0,0.00013698,2]
[380934224,1755907852342,-543.34,0.00013698,2]
[380934225,1755907852352,-400.0,0.00013698,2]
[380934226,1755907852362,-484.18,0.00013698,2]
[380934227,1755907852372,-602.98,0.00013698,2]
[380934228,1755907852382,-151.0,0.00013698,2]
[380934229,1755907852391,-400.0,0.00013698,2]
[380934230,1755907852401,-546.38597261,0.00013698,2]
[380934231,1755907852412,-400.0,0.00013698,2]
[380934232,1755907852422,-407.62,0.00013698,2]
[380934233,1755907852432,-400.0,0.00013698,2]
[380934234,1755907852441,-322.58162158,0.00013698,2]
[380934235,1755907852451,-718.59,0.00013698,2]
[380934236,1755907852461,-453.62,0.00013698,2]
[380934237,1755907852470,-1579.45,0.00013698,2]
[380934238,1755907852480,-1250.54,0.00013698,2]
[380934239,1755907852490,-151.0,0.00013698,2]
[380934240,1755907852499,-400.0,0.00013698,2]
[380934241,1755907852509,-425.63,0.00013698,2]
[380934242,1755907852519,-151.0,0.00013698,2]
[380934243,1755907852528,-400.0,0.00013698,2]
[380934244,1755907852539,-292.505286,0.00013698,2]
[380934245,1755907852548,-400.0,0.00013698,2]
[380934246,1755907852558,-151.0,0.00013698,2]
[380934247,1755907852568,-420.41,0.00013698,2]
[380934248,1755907852577,-224.462135,0.00013698,2]
[380934249,1755907852587,-400.0,0.00013698,2]
[380934250,1755907852597,-400.0,0.00013698,2]
[380934251,1755907852606,-593.83,0.00013698,2]
[380934252,1755907852616,-1061.66,0.00013698,2]
[380934253,1755907852626,-151.0,0.00013698,2]
[380934254,1755907852636,-400.0,0.00013698,2]
[380934255,1755907852646,-400.0,0.00013698,2]
[380934256,1755907852656,-400.0,0.00013698,2]
[380934257,1755907852666,-400.0,0.00013698,2]
[380934258,1755907852676,-400.0,0.00013698,2]
[380934259,1755907852686,-189.714267,0.00013698,2]
[380934260,1755907852695,-1066.99,0.00013698,2]
[380934261,1755907852705,-974.88,0.00013698,2]
[380934262,1755907852714,-580.28,0.00013698,2]
[380934263,1755907852724,-1023.63,0.00013698,2]
[380934264,1755907852734,-151.0,0.00013698,2]
[380934265,1755907852744,-400.0,0.00013698,2]
[380934266,1755907852754,-1329.32,0.00013698,2]
[380934267,1755907852763,-400.0,0.00013698,2]
[380934268,1755907852773,-922.21,0.00013698,2]
[380934269,1755907852783,-151.0,0.00013698,2]
[380934270,1755907852792,-400.0,0.00013698,2]
[380934271,1755907852802,-400.0,0.00013698,2]
[380934272,1755907852812,-400.0,0.00013698,2]
[380934273,1755907852822,-559.29,0.00013698,2]
[380934274,1755907852831,-151.0,0.00013698,2]
[380934275,1755907852843,-703.59,0.00013698,2]
[380934276,1755907852856,-734.46,0.00013698,2]
[380934277,1755907852866,-624.39,0.00013698,2]
[380934278,1755907852875,-285.572488,0.00013698,2]
[380934279,1755907852886,-151.0,0.00013698,2]
[380934280,1755907852896,-400.0,0.00013698,2]
[380934281,1755907852906,-452.99,0.00013698,2]
[380934282,1755907852917,-400.0,0.00013698,2]
[380934283,1755907852926,-426.42,0.00013698,2]
[380934284,1755907852937,-151.0,0.00013698,2]
[380934285,1755907852947,-1000.0,0.00013698,2]
[380934286,1755907852956,-452.43,0.00013698,2]
[380934287,1755907852965,-453.74,0.00013698,2]
[380934288,1755907852976,-151.0,0.00013698,2]
[380934289,1755907852986,-786.5,0.00013698,2]
[380934290,1755907852995,-403.26,0.00013698,2]
[380934291,1755907853005,-655.19,0.00013698,2]
[380934292,1755907853014,-1245.75,0.00013698,2]
[380934293,1755907853025,-400.0,0.00013698,2]
[380934294,1755907853035,-400.0,0.00013698,2]
[380934295,1755907853045,-1055.89,0.00013698,2]
[380934296,1755907853054,-400.0,0.00013698,2]
[380934297,1755907853064,-151.0,0.00013698,2]
[380934298,1755907853075,-400.0,0.00013698,2]
[380934299,1755907853084,-831.3,0.00013698,2]
[380934300,1755907853095,-418.46,0.00013698,2]
[380934301,1755907853105,-1231.82,0.00013698,2]
[380934302,1755907853116,-1154.19,0.00013698,2]
[380934303,1755907853125,-400.0,0.00013698,2]
[380934304,1755907853135,-400.0,0.00013698,2]
[380934305,1755907853146,-151.0,0.00013698,2]
[380934306,1755907853155,-400.0,0.00013698,2]
[380934307,1755907853166,-532.04,0.00013698,2]
[380934308,1755907853176,-400.0,0.00013698,2]
[380934309,1755907853186,-2106.1,0.00013698,2]
[380934310,1755907853195,-400.0,0.00013698,2]
[380934311,1755907853205,-789.1,0.00013698,2]
[380934312,1755907853215,-429.49,0.00013698,2]
[380934313,1755907853225,-446.9,0.00013698,2]
[380934314,1755907853234,-400.0,0.00013698,2]
[380934315,1755907853244,-519.19,0.00013698,2]
[380934316,1755907853254,-404.35,0.00013698,2]
[380934317,1755907853264,-400.0,0.00013698,2]
[380934318,1755907853273,-400.0,0.00013698,2]
[380934319,1755907853283,-412.28,0.00013698,2]
[380934320,1755907853292,-400.0,0.00013698,2]
[380934321,1755907853301,-608.98,0.00013698,2]
[380934322,1755907853310,-604.39,0.00013698,2]
[380934323,1755907853320,-1480.62,0.00013698,2]
[380934324,1755907853330,-400.0,0.00013698,2]
[380934325,1755907853340,-950.82,0.00013698,2]
[380934326,1755907853349,-400.70232944,0.00013698,2]
[380934327,1755907853359,-400.0,0.00013698,2]
[380934328,1755907853368,-400.0,0.00013698,2]
[380934329,1755907853377,-400.0,0.00013698,2]
[380934330,1755907853387,-619.4,0.00013698,2]
[380934331,1755907853397,-958.55,0.00013698,2]
[380934332,1755907853409,-672.42,0.00013698,2]
[380934333,1755907853422,-1420.92,0.00013698,2]
[380934334,1755907853438,-400.0,0.00013698,2]
[380934335,1755907853448,-400.0,0.00013698,2]
[380934336,1755907853459,-778.8,0.00013698,2]
[380934337,1755907853468,-757.83,0.00013698,2]
[380934338,1755907853478,-400.0,0.00013698,2]
[380934339,1755907853492,-151.0,0.00013698,2]
[380934340,1755907853502,-400.0,0.00013698,2]
[380934341,1755907853511,-151.0,0.00013698,2]
[380934342,1755907853521,-400.0,0.00013698,2]
[380934343,1755907853531,-400.0,0.00013698,2]
[380934344,1755907853542,-400.0,0.00013698,2]
[380934345,1755907853551,-602.61,0.00013698,2]
[380934346,1755907853561,-872.01,0.00013698,2]
[380934347,1755907853571,-151.0,0.00013698,2]
[380934348,1755907853580,-400.0,0.00013698,2]
[380934349,1755907853590,-1144.11,0.00013698,2]
[380934350,1755907853600,-1053.29,0.00013698,2]
[380934351,1755907853610,-400.0,0.00013698,2]
[380934352,1755907853620,-400.0,0.00013698,2]
[380934353,1755907853630,-400.0,0.00013698,2]
[380934354,1755907853640,-833.36,0.00013698,2]
[380934355,1755907853650,-400.0,0.00013698,2]
[380934356,1755907853660,-400.0,0.00013698,2]
[380934357,1755907853671,-475.6,0.00013698,2]
[380934358,1755907853681,-400.0,0.00013698,2]
[380934359,1755907853691,-803.12,0.00013698,2]
[380934360,1755907853701,-400.0,0.00013698,2]
[380934361,1755907853712,-569.88,0.00013698,2]
[380934362,1755907853723,-151.0,0.00013698,2]
[380934363,1755907853733,-813.75,0.00013698,2]
[380934364,1755907853743,-400.0,0.00013698,2]
[380934365,1755907853754,-151.0,0.00013698,2]
[380934366,1755907853763,-799.38,0.00013698,2]
[380934367,1755907853773,-741.61,0.00013698,2]
[380934368,1755907853783,-1311.85,0.00013698,2]
[380934369,1755907853793,-400.0,0.00013698,2]
[380934370,1755907853803,-249.601395,0.00013698,2]
[380934371,1755907853814,-400.0,0.00013698,2]
[380934372,1755907853824,-400.0,0.00013698,2]
[380934373,1755907853834,-151.0,0.00013698,2]
[380934374,1755907853848,-438.484875,0.00013698,2]
[380934375,1755907853859,-1880.27,0.00013698,2]
[380934376,1755907853869,-292.54647159,0.00013698,2]
[380934377,1755907853880,-400.0,0.00013698,2]
[380934378,1755907853892,-438.484875,0.00013698,2]
[380934379,1755907853902,-151.0,0.00013698,2]
[380934380,1755907853914,-400.0,0.00013698,2]
[380934381,1755907853927,-438.484875,0.00013698,2]
[380934382,1755907853938,-315.925098,0.00013698,2]
[380934383,1755907853948,-1260.06,0.00013698,2]
[380934384,1755907853958,-151.0,0.00013698,2]
[380934385,1755907853968,-400.0,0.00013698,2]
[380934386,1755907853978,-151.0,0.00013698,2]
[380934387,1755907853989,-438.484875,0.00013698,2]
[380934388,1755907853999,-151.0,0.00013698,2]
[380934389,1755907854009,-400.0,0.00013698,2]
[380934390,1755907854020,-315.925098,0.00013698,2]
[380934391,1755907854030,-151.0,0.00013698,2]
[380934392,1755907854040,-400.0,0.00013698,2]
[380934393,1755907854051,-151.0,0.00013698,2]
[380934394,1755907854061,-421.79,0.00013698,2]
[380934395,1755907854071,-315.925098,0.00013698,2]
[380934396,1755907854081,-588.84,0.00013698,2]
[380934397,1755907854092,-400.0,0.00013698,2]
[380934398,1755907854102,-886.636521,0.00013698,2]
[380934399,1755907854113,-400.0,0.00013698,2]
[380934400,1755907854123,-400.0,0.00013698,2]
[380934401,1755907854133,-315.925098,0.00013698,2]
[380934402,1755907854144,-538.61,0.00013698,2]
[380934403,1755907854153,-808.9,0.00013698,2]
[380934404,1755907854164,-400.0,0.00013698,2]
[380934405,1755907854175,-400.0,0.00013698,2]
[380934406,1755907854185,-400.0,0.00013698,2]
[380934407,1755907854195,-440.64,0.00013698,2]
[380934408,1755907854206,-400.0,0.00013698,2]
[380934409,1755907854217,-965.29,0.00013698,2]
[380934410,1755907854227,-400.0,0.00013698,2]
[380934411,1755907854238,-417.43,0.00013698,2]
[380934412,1755907854249,-302.0,0.00013698,2]
[380934413,1755907854259,-427.89,0.00013698,2]
[380934414,1755907854269,-150.12,0.00013698,2]
[380934415,1755907854279,-429.03,0.00013698,2]
[380934416,1755907854289,-1000.0,0.00013699,2]
[380934417,1755907854299,-200.0,0.00013699,2]
[380934418,1755907854309,-2118.87,0.00013699,2]
[380934419,1755907854319,-151.0,0.00013699,2]
[380934420,1755907854329,-1000.0,0.00013699,2]
[380934421,1755907854339,-300.0,0.00013699,2]
[380934422,1755907854349,-150.0,0.00013699,2]
[380934423,1755907854360,-1000.0,0.000137,2]
[380934424,1755907854370,-1600.0,0.000137,5]
[380934425,1755907854381,-2703.2,0.000137,2]
[380934426,1755907854391,-3638.5777569,0.0001372,2]
[380934427,1755907854402,-1728.14761797,0.0001372,2]
[380934428,1755907854413,-2500.0,0.00013724,2]
[380934429,1755907854423,-300.0,0.00013724,2]
[380934430,1755907854433,-2000.0,0.00013724,3]
[380934431,1755907854445,-150.0,0.00013725,2]
[380934432,1755907854455,-150.0,0.00013777,2]
[380934433,1755907854465,-300.0,0.0001378,2]
[380934434,1755907854475,-3638.5777569,0.00013781,2]
[380934435,1755907854485,-1728.14761797,0.00013781,2]
[380934436,1755907854495,-1000.0,0.00013798,2]
[380934437,1755907854506,-2200.0,0.000138,5]
[380934438,1755907854516,-1566.0,0.000138,2]
[380934439,1755907854526,-261.33773505,0.00013812,2]
[380934440,1755907854537,-1000.0,0.00013827,2]
[380934441,1755907854547,-150.0,0.00013831,2]
[380934442,1755907854557,-150.0,0.00013833,2]
[380934443,1755907854567,-150.0,0.00013833,2]
[380934444,1755907854580,-150.0,0.00013833,2]
[380934445,1755907854590,-150.0,0.00013833,2]
[380934446,1755907854600,-150.0,0.00013833,2]
[380934447,1755907854611,-150.0,0.00013833,2]
[380934448,1755907854622,-150.0,0.00013833,2]
[380934449,1755907854632,-150.0,0.00013833,2]
[380934450,1755907854642,-150.0,0.00013833,2]
[380934451,1755907854652,-150.0,0.00013833,2]
[380934452,1755907854663,-150.0,0.00013833,2]
[380934453,1755907854674,-150.0,0.00013833,2]
[380934454,1755907854684,-150.0,0.00013833,2]
[380934455,1755907854695,-1425.0,0.00013839,2]
[380934456,1755907854705,-3638.5777569,0.00013842,2]
[380934457,1755907854716,-1728.14761797,0.00013842,2]
[380934458,1755907854726,-21506.0,0.00013854,2]
[380934459,1755907854737,-4153.0,0.00013854,2]
[380934460,1755907854747,-6093.0,0.00013854,2]